[Event "*** SCC Grand Prix: Titled Tuesday Blitz"]
[Site "Chess.com"]
[Date "2020.07.14"]
[Round "8"]
[White "bugsbunny444"]
[Black "vovachesss"]
[Result "1-0"]
[WhiteElo "2481"]
[BlackElo "2595"]
[TimeControl "180+1"]
[EndTime "11:37:29 PDT"]
[Termination "bugsbunny444 won on time"]

1. Nf3 {[%clk 0:03:00.9]} 1... d5 {[%clk 0:02:59.4]} 2. c4 {[%clk 0:03:01.2]}
2... c6 {[%clk 0:02:58.8]} 3. g3 {[%clk 0:03:00.2]} 3... Nf6 {[%clk 0:02:59.3]}
4. Bg2 {[%clk 0:02:59.1]} 4... Bf5 {[%clk 0:02:59.1]} 5. cxd5 {[%clk 0:02:58.5]}
5... cxd5 {[%clk 0:02:59.3]} 6. Qb3 {[%clk 0:02:59.1]} 6... Qc7 {[%clk
0:02:57.1]} 7. Nc3 {[%clk 0:02:59.2]} 7... e6 {[%clk 0:02:56.7]} 8. d3 {[%clk
0:02:58.1]} 8... Nc6 {[%clk 0:02:56.2]} 9. Bf4 {[%clk 0:02:57.6]} 9... Bd6
{[%clk 0:02:42.9]} 10. Nb5 {[%clk 0:02:54.5]} 10... Qa5+ {[%clk 0:02:41.5]} 11.
Bd2 {[%clk 0:02:53.1]} 11... Qd8 {[%clk 0:02:35.4]} 12. Nbd4 {[%clk 0:02:32.2]}
12... Nxd4 {[%clk 0:02:24.6]} 13. Nxd4 {[%clk 0:02:31.8]} 13... Bg6 {[%clk
0:02:25.5]} 14. Qxb7 {[%clk 0:02:27.6]} 14... O-O {[%clk 0:02:25.7]} 15. Nc6
{[%clk 0:02:21.2]} 15... Qe8 {[%clk 0:02:17.1]} 16. O-O {[%clk 0:02:14.4]} 16...
Nd7 {[%clk 0:02:11.1]} 17. b4 {[%clk 0:02:02.5]} 17... a5 {[%clk 0:01:50.9]} 18.
bxa5 {[%clk 0:01:14.2]} 18... Nc5 {[%clk 0:01:46.9]} 19. Qb5 {[%clk 0:01:13.9]}
19... Rb8 {[%clk 0:01:37.7]} 20. a4 {[%clk 0:00:16.4]} 20... Rxb5 {[%clk
0:01:32.1]} 21. axb5 {[%clk 0:00:17.3]} 21... Qd7 {[%clk 0:01:26.4]} 22. Rfb1
{[%clk 0:00:16.1]} 22... Ra8 {[%clk 0:01:24.2]} 23. Bb4 {[%clk 0:00:11.7]} 23...
Nb7 {[%clk 0:01:20.3]} 24. Bxd6 {[%clk 0:00:11.3]} 24... Nxd6 {[%clk 0:01:21.2]}
25. Ne5 {[%clk 0:00:10.6]} 25... Qb7 {[%clk 0:01:13.9]} 26. b6 {[%clk
0:00:10.2]} 26... f6 {[%clk 0:00:57.2]} 27. Nf3 {[%clk 0:00:10.3]} 27... Be8
{[%clk 0:00:52.9]} 28. Nd4 {[%clk 0:00:10]} 28... e5 {[%clk 0:00:48.8]} 29. Nb3
{[%clk 0:00:09.6]} 29... Qc6 {[%clk 0:00:41.4]} 30. Rc1 {[%clk 0:00:09.2]} 30...
Qb5 {[%clk 0:00:38.7]} 31. Rc5 {[%clk 0:00:09.4]} 31... Qb4 {[%clk 0:00:28.9]}
32. Bxd5+ {[%clk 0:00:09.5]} 32... Kf8 {[%clk 0:00:29.3]} 33. Bxa8 {[%clk
0:00:08.5]} 33... Qxb3 {[%clk 0:00:29.8]} 34. Bd5 {[%clk 0:00:06.7]} 34... Qb2
{[%clk 0:00:27.9]} 35. Ra2 {[%clk 0:00:04.9]} 35... Qb1+ {[%clk 0:00:26.3]} 36.
Kg2 {[%clk 0:00:05.1]} 36... e4 {[%clk 0:00:18.3]} 37. dxe4 {[%clk 0:00:04.6]}
37... Nxe4 {[%clk 0:00:19.2]} 38. Rcc2 {[%clk 0:00:03.7]} 38... f5 {[%clk
0:00:16.8]} 39. b7 {[%clk 0:00:02.9]} 39... Qb5 {[%clk 0:00:16.3]} 40. Bxe4
{[%clk 0:00:02.6]} 40... fxe4 {[%clk 0:00:15.7]} 41. a6 {[%clk 0:00:03.5]} 41...
e3 {[%clk 0:00:13.4]} 42. f3 {[%clk 0:00:04.1]} 42... Qb4 {[%clk 0:00:10.5]} 43.
a7 {[%clk 0:00:03.9]} 43... Qe1 {[%clk 0:00:10.8]} 44. b8=Q {[%clk 0:00:02.7]}
44... Qf2+ {[%clk 0:00:11.3]} 45. Kh3 {[%clk 0:00:03.6]} 45... Qf1+ {[%clk
0:00:11.4]} 46. Kg4 {[%clk 0:00:03.7]} 46... h5+ {[%clk 0:00:10.8]} 47. Kg5
{[%clk 0:00:03.6]} 47... Qd1 {[%clk 0:00:06.2]} 48. Qf4+ {[%clk 0:00:03.5]}
48... Kg8 {[%clk 0:00:06.2]} 49. Qxe3 {[%clk 0:00:03.9]} 49... Qd5+ {[%clk
0:00:06.1]} 50. Kh4 {[%clk 0:00:03.3]} 50... Qd8+ {[%clk 0:00:02.9]} 51. Qg5
{[%clk 0:00:04.2]} 51... Qd4+ {[%clk 0:00:03.1]} 52. f4 {[%clk 0:00:04.3]} 52...
Qf2 {[%clk 0:00:02]} 53. h3 {[%clk 0:00:04.8]} 53... Bd7 {[%clk 0:00:01.6]} 54.
Qd8+ {[%clk 0:00:04.4]} 54... Kh7 {[%clk 0:00:02.5]} 55. Qxd7 {[%clk 0:00:04.8]}
55... Qe3 {[%clk 0:00:02.3]} 56. Qf7 {[%clk 0:00:04]} 56... Qc5 {[%clk
0:00:01.8]} 57. Qxh5+ {[%clk 0:00:04.3]} 57... Kg8 {[%clk 0:00:01.6]} 58. Qxc5
{[%clk 0:00:04]} 1-0

[Event "*** SCC Grand Prix: Titled Tuesday Blitz"]
[Site "Chess.com"]
[Date "2020.07.14"]
[Round "8"]
[White "bgfbfbgfbgfgf"]
[Black "Guenplen"]
[Result "1/2-1/2"]
[WhiteElo "2674"]
[BlackElo "2875"]
[TimeControl "180+1"]
[EndTime "11:37:32 PDT"]
[Termination "Game drawn by repetition"]

1. e4 {[%clk 0:03:00.9]} 1... c5 {[%clk 0:02:59.9]} 2. Nc3 {[%clk 0:03:00.4]}
2... a6 {[%clk 0:02:57.8]} 3. Nge2 {[%clk 0:02:59.2]} 3... e6 {[%clk 0:02:54.9]}
4. g3 {[%clk 0:02:59.3]} 4... b5 {[%clk 0:02:54.9]} 5. Bg2 {[%clk 0:02:59.8]}
5... Bb7 {[%clk 0:02:55.3]} 6. d4 {[%clk 0:03:00.4]} 6... cxd4 {[%clk
0:02:54.9]} 7. Nxd4 {[%clk 0:03:01.3]} 7... Nc6 {[%clk 0:02:55.5]} 8. O-O {[%clk
0:03:00.5]} 8... Nxd4 {[%clk 0:02:55.7]} 9. Qxd4 {[%clk 0:03:00]} 9... Ne7
{[%clk 0:02:56.4]} 10. Re1 {[%clk 0:02:58.6]} 10... Nc6 {[%clk 0:02:53.3]} 11.
Qd1 {[%clk 0:02:58.6]} 11... Bc5 {[%clk 0:02:46.1]} 12. e5 {[%clk 0:02:53.5]}
12... Bb4 {[%clk 0:02:36]} 13. Ne4 {[%clk 0:02:40.3]} 13... O-O {[%clk
0:02:21.4]} 14. Bg5 {[%clk 0:02:10]} 14... Be7 {[%clk 0:02:10.4]} 15. Bxe7
{[%clk 0:01:58.4]} 15... Qxe7 {[%clk 0:02:11.3]} 16. Qd6 {[%clk 0:01:42.9]}
16... Qxd6 {[%clk 0:01:48.4]} 17. Nxd6 {[%clk 0:01:42.6]} 17... Rab8 {[%clk
0:01:48.9]} 18. Nxb7 {[%clk 0:01:31.8]} 18... Rxb7 {[%clk 0:01:48.3]} 19. Bxc6
{[%clk 0:01:32.3]} 19... dxc6 {[%clk 0:01:47.8]} 20. Rad1 {[%clk 0:01:33.2]}
20... a5 {[%clk 0:01:33.7]} 21. Rd6 {[%clk 0:01:21.5]} 21... Rc7 {[%clk
0:01:31.1]} 22. Re4 {[%clk 0:01:10.6]} 22... h5 {[%clk 0:01:21]} 23. c4 {[%clk
0:01:02.8]} 23... bxc4 {[%clk 0:01:05]} 24. Rxc4 {[%clk 0:01:03.7]} 24... Rb8
{[%clk 0:01:05.4]} 25. b3 {[%clk 0:01:03.8]} 25... Rb5 {[%clk 0:01:05.6]} 26. f4
{[%clk 0:00:58.5]} 26... c5 {[%clk 0:00:57.2]} 27. Kf2 {[%clk 0:00:52.4]} 27...
Rb4 {[%clk 0:00:53.3]} 28. Ra6 {[%clk 0:00:42.5]} 28... Rxc4 {[%clk 0:00:26.4]}
29. bxc4 {[%clk 0:00:43.4]} 29... Rb7 {[%clk 0:00:26.8]} 30. Rxa5 {[%clk
0:00:26.8]} 30... Rb2+ {[%clk 0:00:26.5]} 31. Ke3 {[%clk 0:00:21.1]} 31... Rxh2
{[%clk 0:00:26.3]} 32. a4 {[%clk 0:00:20.4]} 32... Ra2 {[%clk 0:00:23.1]} 33.
Rxc5 {[%clk 0:00:19]} 33... Rxa4 {[%clk 0:00:19.7]} 34. Rc8+ {[%clk 0:00:18.9]}
34... Kh7 {[%clk 0:00:19.6]} 35. c5 {[%clk 0:00:19.4]} 35... Ra3+ {[%clk
0:00:16.6]} 36. Kf2 {[%clk 0:00:17.9]} 36... Rc3 {[%clk 0:00:16.5]} 37. c6
{[%clk 0:00:17.8]} 37... Kg6 {[%clk 0:00:16.8]} 38. c7 {[%clk 0:00:17.7]} 38...
Kf5 {[%clk 0:00:10.8]} 39. Kg2 {[%clk 0:00:17.6]} 39... Kg4 {[%clk 0:00:08.6]}
40. Rg8 {[%clk 0:00:17.1]} 40... Rc2+ {[%clk 0:00:08.9]} 41. Kg1 {[%clk
0:00:16.2]} 41... Rxc7 {[%clk 0:00:09.1]} 42. Rxg7+ {[%clk 0:00:16.3]} 42... Kf3
{[%clk 0:00:09.8]} 43. Kh2 {[%clk 0:00:16.6]} 43... Rc2+ {[%clk 0:00:08.9]} 44.
Kh3 {[%clk 0:00:15.8]} 44... Rc1 {[%clk 0:00:09]} 45. Kh2 {[%clk 0:00:14]} 45...
Rc2+ {[%clk 0:00:05.1]} 46. Kh3 {[%clk 0:00:14.2]} 46... Rc1 {[%clk 0:00:05.5]}
47. Kh2 {[%clk 0:00:07.4]} 47... h4 {[%clk 0:00:02.2]} 48. gxh4 {[%clk
0:00:05.6]} 48... Rc2+ {[%clk 0:00:02.7]} 49. Kh3 {[%clk 0:00:05.3]} 49... Rc1
{[%clk 0:00:03.2]} 50. Kh2 {[%clk 0:00:04]} 50... Kxf4 {[%clk 0:00:02.4]} 51. h5
{[%clk 0:00:04.4]} 51... Rc2+ {[%clk 0:00:02.2]} 52. Kh3 {[%clk 0:00:04.5]}
52... Rc3+ {[%clk 0:00:02.1]} 53. Kh4 {[%clk 0:00:04.2]} 53... Rc1 {[%clk
0:00:02.5]} 54. Rxf7+ {[%clk 0:00:04.7]} 54... Kxe5 {[%clk 0:00:03]} 55. h6
{[%clk 0:00:05.6]} 55... Rh1+ {[%clk 0:00:02.9]} 56. Kg5 {[%clk 0:00:06.1]}
56... Rg1+ {[%clk 0:00:03.5]} 57. Kh5 {[%clk 0:00:06.5]} 57... Rh1+ {[%clk
0:00:04]} 58. Kg5 {[%clk 0:00:07]} 58... Rg1+ {[%clk 0:00:03.8]} 59. Kh5 {[%clk
0:00:07.2]} 59... Rh1+ {[%clk 0:00:04.3]} 60. Kg6 {[%clk 0:00:07.4]} 60... Rg1+
{[%clk 0:00:04.6]} 61. Kh5 {[%clk 0:00:05.5]} 1/2-1/2

[Event "*** SCC Grand Prix: Titled Tuesday Blitz"]
[Site "Chess.com"]
[Date "2020.07.14"]
[Round "8"]
[White "manmanlai1"]
[Black "NikolaGry"]
[Result "1/2-1/2"]
[WhiteElo "2482"]
[BlackElo "2645"]
[TimeControl "180+1"]
[EndTime "11:37:32 PDT"]
[Termination "Game drawn - insufficient material"]

1. e4 {[%clk 0:03:00.9]} 1... d6 {[%clk 0:02:58.7]} 2. d4 {[%clk 0:02:54]} 2...
Nf6 {[%clk 0:02:59.2]} 3. Nd2 {[%clk 0:02:53.3]} 3... e5 {[%clk 0:02:57.6]} 4.
c3 {[%clk 0:02:50.4]} 4... Nc6 {[%clk 0:02:55.8]} 5. Ngf3 {[%clk 0:02:48.8]}
5... a6 {[%clk 0:02:55.1]} 6. Bd3 {[%clk 0:02:47.4]} 6... Be7 {[%clk 0:02:53.1]}
7. O-O {[%clk 0:02:46.4]} 7... O-O {[%clk 0:02:53.2]} 8. h3 {[%clk 0:02:46.7]}
8... Re8 {[%clk 0:02:47.9]} 9. Re1 {[%clk 0:02:44.9]} 9... Bf8 {[%clk 0:02:48]}
10. Qc2 {[%clk 0:02:45.2]} 10... exd4 {[%clk 0:02:46.7]} 11. Nxd4 {[%clk
0:02:42.3]} 11... Bd7 {[%clk 0:02:42.5]} 12. Nf1 {[%clk 0:02:30.6]} 12... Ne5
{[%clk 0:02:33.4]} 13. Be2 {[%clk 0:02:27.8]} 13... c5 {[%clk 0:02:31.7]} 14.
Nf5 {[%clk 0:02:24.8]} 14... Ng6 {[%clk 0:02:11]} 15. N1g3 {[%clk 0:02:19.9]}
15... d5 {[%clk 0:02:02.4]} 16. exd5 {[%clk 0:02:13.1]} 16... Nxd5 {[%clk
0:02:00]} 17. Bd2 {[%clk 0:02:11.9]} 17... Qf6 {[%clk 0:01:45.1]} 18. Bf3 {[%clk
0:01:55.9]} 18... Bc6 {[%clk 0:01:25.6]} 19. Nh5 {[%clk 0:01:48]} 19... Rxe1+
{[%clk 0:01:11.9]} 20. Rxe1 {[%clk 0:01:48.9]} 20... Qd8 {[%clk 0:01:10.1]} 21.
Bc1 {[%clk 0:01:32.9]} 21... Nde7 {[%clk 0:00:57.4]} 22. Nxe7+ {[%clk
0:01:17.6]} 22... Nxe7 {[%clk 0:00:51.1]} 23. Rd1 {[%clk 0:01:04.4]} 23... Qa5
{[%clk 0:00:41]} 24. Bxc6 {[%clk 0:00:54.1]} 24... Nxc6 {[%clk 0:00:40.2]} 25.
a3 {[%clk 0:00:53.8]} 25... Rd8 {[%clk 0:00:34.8]} 26. Ng3 {[%clk 0:00:42.6]}
26... c4 {[%clk 0:00:28.6]} 27. Bf4 {[%clk 0:00:32.8]} 27... Rxd1+ {[%clk
0:00:24.8]} 28. Qxd1 {[%clk 0:00:33.7]} 28... Qb5 {[%clk 0:00:24.4]} 29. Qd2
{[%clk 0:00:30.2]} 29... Ne7 {[%clk 0:00:24]} 30. Bd6 {[%clk 0:00:28]} 30... Qd5
{[%clk 0:00:24]} 31. Qxd5 {[%clk 0:00:24.7]} 31... Nxd5 {[%clk 0:00:24]} 32.
Bxf8 {[%clk 0:00:25.1]} 32... Kxf8 {[%clk 0:00:24.2]} 33. Ne2 {[%clk 0:00:16.7]}
33... b5 {[%clk 0:00:23.3]} 34. Kf1 {[%clk 0:00:17]} 34... Nb6 {[%clk
0:00:23.5]} 35. Ke1 {[%clk 0:00:06.1]} 35... Na4 {[%clk 0:00:23.6]} 36. Kd2
{[%clk 0:00:06.7]} 36... Nxb2 {[%clk 0:00:23.9]} 37. Nd4 {[%clk 0:00:07.3]}
37... Ke7 {[%clk 0:00:22.5]} 38. f3 {[%clk 0:00:05.9]} 38... Kd7 {[%clk
0:00:22.5]} 39. h4 {[%clk 0:00:06.3]} 39... Nd3 {[%clk 0:00:22.6]} 40. h5 {[%clk
0:00:06.2]} 40... h6 {[%clk 0:00:22.1]} 41. g4 {[%clk 0:00:06.2]} 41... Ne5
{[%clk 0:00:22]} 42. Ke3 {[%clk 0:00:06.3]} 42... g6 {[%clk 0:00:22.1]} 43. g5
{[%clk 0:00:05.6]} 43... hxg5 {[%clk 0:00:20.5]} 44. h6 {[%clk 0:00:05.3]} 44...
f5 {[%clk 0:00:20.7]} 45. h7 {[%clk 0:00:05.4]} 45... Nf7 {[%clk 0:00:20.9]} 46.
Nc2 {[%clk 0:00:04]} 46... Ke7 {[%clk 0:00:19.7]} 47. Nb4 {[%clk 0:00:03.1]}
47... Kf6 {[%clk 0:00:17.8]} 48. Nxa6 {[%clk 0:00:02.6]} 48... Kg7 {[%clk
0:00:18]} 49. Nc7 {[%clk 0:00:02.3]} 49... Nd6 {[%clk 0:00:18.2]} 50. Kd4 {[%clk
0:00:02.7]} 50... g4 {[%clk 0:00:17.9]} 51. fxg4 {[%clk 0:00:01.9]} 51... fxg4
{[%clk 0:00:18.1]} 52. Ke3 {[%clk 0:00:02.4]} 52... Kxh7 {[%clk 0:00:17.8]} 53.
Kf4 {[%clk 0:00:02.7]} 53... g3 {[%clk 0:00:17.8]} 54. Kxg3 {[%clk 0:00:02.7]}
54... Ne4+ {[%clk 0:00:17.9]} 55. Kf4 {[%clk 0:00:03.2]} 55... Nxc3 {[%clk
0:00:18.2]} 56. Ke3 {[%clk 0:00:03]} 56... g5 {[%clk 0:00:18.5]} 57. Kd4 {[%clk
0:00:02.8]} 57... Nb1 {[%clk 0:00:16.7]} 58. Nxb5 {[%clk 0:00:02.4]} 58... g4
{[%clk 0:00:17]} 59. Kxc4 {[%clk 0:00:01.7]} 59... g3 {[%clk 0:00:17.1]} 60. Nd4
{[%clk 0:00:01.7]} 60... Nd2+ {[%clk 0:00:16.8]} 61. Kd3 {[%clk 0:00:01.3]}
61... g2 {[%clk 0:00:16.3]} 62. Ne2 {[%clk 0:00:01.2]} 62... Nf3 {[%clk
0:00:15.9]} 63. Ke3 {[%clk 0:00:02.1]} 63... Ne5 {[%clk 0:00:15.7]} 64. Kf2
{[%clk 0:00:02.7]} 64... Nc4 {[%clk 0:00:15.5]} 65. Kxg2 {[%clk 0:00:03.6]}
65... Nxa3 {[%clk 0:00:15.7]} 1/2-1/2

[Event "*** SCC Grand Prix: Titled Tuesday Blitz"]
[Site "Chess.com"]
[Date "2020.07.14"]
[Round "8"]
[White "Khazieva_Elza"]
[Black "ShahMatKanal"]
[Result "0-1"]
[WhiteElo "2329"]
[BlackElo "2498"]
[TimeControl "180+1"]
[EndTime "11:37:32 PDT"]
[Termination "ShahMatKanal won on time"]

1. e4 {[%clk 0:03:00.9]} 1... d5 {[%clk 0:02:59.8]} 2. Nc3 {[%clk 0:03:00.1]}
2... dxe4 {[%clk 0:02:58.1]} 3. Nxe4 {[%clk 0:03:01]} 3... Bf5 {[%clk
0:02:46.7]} 4. Qf3 {[%clk 0:03:00.5]} 4... Bxe4 {[%clk 0:02:43.7]} 5. Qxe4
{[%clk 0:03:00.4]} 5... c6 {[%clk 0:02:43.6]} 6. d4 {[%clk 0:02:51.2]} 6... Nf6
{[%clk 0:02:43.2]} 7. Qh4 {[%clk 0:02:47.1]} 7... e6 {[%clk 0:02:42.8]} 8. Nf3
{[%clk 0:02:41.9]} 8... Be7 {[%clk 0:02:42.6]} 9. Qg3 {[%clk 0:02:39.8]} 9...
O-O {[%clk 0:02:42.7]} 10. Bh6 {[%clk 0:02:20.7]} 10... Ne8 {[%clk 0:02:33.5]}
11. Bf4 {[%clk 0:02:15.9]} 11... Nd7 {[%clk 0:02:30.1]} 12. Bd3 {[%clk 0:02:04]}
12... Ndf6 {[%clk 0:02:29.9]} 13. Be5 {[%clk 0:01:57.8]} 13... Bd6 {[%clk
0:02:26.7]} 14. O-O-O {[%clk 0:01:55.7]} 14... Nh5 {[%clk 0:02:14.3]} 15. Qg4
{[%clk 0:01:45.9]} 15... g6 {[%clk 0:02:09.8]} 16. Qe4 {[%clk 0:01:38]} 16...
Bxe5 {[%clk 0:01:57.9]} 17. dxe5 {[%clk 0:01:24.1]} 17... Qd5 {[%clk 0:01:57.7]}
18. Qa4 {[%clk 0:01:12.2]} 18... b5 {[%clk 0:01:49.4]} 19. Qa3 {[%clk
0:01:11.5]} 19... b4 {[%clk 0:01:34.1]} 20. Qxb4 {[%clk 0:00:48.1]} 20... c5
{[%clk 0:01:22.6]} 21. Qa4 {[%clk 0:00:42.6]} 21... Qb7 {[%clk 0:01:04.9]} 22.
Be4 {[%clk 0:00:39.9]} 22... Qb8 {[%clk 0:01:04.7]} 23. Bxa8 {[%clk 0:00:32.9]}
23... Qxa8 {[%clk 0:01:05.6]} 24. Rd7 {[%clk 0:00:26.5]} 24... a6 {[%clk
0:00:58.6]} 25. Rhd1 {[%clk 0:00:24.9]} 25... Neg7 {[%clk 0:00:53.3]} 26. Ng5
{[%clk 0:00:25]} 26... h6 {[%clk 0:00:50.1]} 27. Ne4 {[%clk 0:00:25]} 27... Kh8
{[%clk 0:00:43.8]} 28. g4 {[%clk 0:00:24.1]} 28... Nf4 {[%clk 0:00:44]} 29. Nf6
{[%clk 0:00:20.8]} 29... Ne2+ {[%clk 0:00:23.6]} 30. Kb1 {[%clk 0:00:20.8]}
30... Nd4 {[%clk 0:00:24.1]} 31. Qa5 {[%clk 0:00:19.1]} 31... Qf3 {[%clk
0:00:19.4]} 32. Qd2 {[%clk 0:00:16.5]} 32... g5 {[%clk 0:00:16.9]} 33. c3 {[%clk
0:00:16.4]} 33... Nc6 {[%clk 0:00:14.8]} 34. Rc7 {[%clk 0:00:13.9]} 34... Nxe5
{[%clk 0:00:14.4]} 35. Nd7 {[%clk 0:00:13.4]} 35... Nc4 {[%clk 0:00:11.3]} 36.
Qd3 {[%clk 0:00:09.2]} 36... Qxd3+ {[%clk 0:00:09.5]} 37. Rxd3 {[%clk
0:00:10.1]} 37... Rd8 {[%clk 0:00:10.2]} 38. Kc2 {[%clk 0:00:08.4]} 38... h5
{[%clk 0:00:07.6]} 39. Nf6 {[%clk 0:00:08.2]} 39... Rf8 {[%clk 0:00:03.9]} 40.
b3 {[%clk 0:00:07.4]} 40... Ne5 {[%clk 0:00:04]} 41. Rd6 {[%clk 0:00:06.3]}
41... Nxg4 {[%clk 0:00:04.1]} 42. Nxg4 {[%clk 0:00:06.2]} 42... hxg4 {[%clk
0:00:05]} 43. Rxc5 {[%clk 0:00:06]} 43... Nf5 {[%clk 0:00:04.9]} 44. Ra5 {[%clk
0:00:05]} 44... Nxd6 {[%clk 0:00:04.5]} 45. Rxg5 {[%clk 0:00:04.9]} 45... f5
{[%clk 0:00:03.7]} 46. Rh5+ {[%clk 0:00:04.9]} 46... Kg7 {[%clk 0:00:04]} 47.
Rh4 {[%clk 0:00:05.3]} 47... Kg6 {[%clk 0:00:03.9]} 48. h3 {[%clk 0:00:05.6]}
48... Kg5 {[%clk 0:00:03.1]} 49. Rh7 {[%clk 0:00:05.8]} 49... Ne4 {[%clk
0:00:02.9]} 50. hxg4 {[%clk 0:00:05.8]} 50... fxg4 {[%clk 0:00:03.8]} 51. Rg7+
{[%clk 0:00:05.9]} 51... Kh5 {[%clk 0:00:03]} 52. Re7 {[%clk 0:00:05.1]} 52...
Rxf2+ {[%clk 0:00:02.7]} 53. Kd3 {[%clk 0:00:05.6]} 53... Ng5 {[%clk 0:00:03]}
54. a4 {[%clk 0:00:04.8]} 54... g3 {[%clk 0:00:03.2]} 55. Ke3 {[%clk 0:00:03.9]}
55... Rf3+ {[%clk 0:00:03.3]} 56. Ke2 {[%clk 0:00:04.4]} 56... g2 {[%clk
0:00:04.2]} 57. Rh7+ {[%clk 0:00:03.6]} 57... Kg4 {[%clk 0:00:04.6]} 0-1

[Event "*** SCC Grand Prix: Titled Tuesday Blitz"]
[Site "Chess.com"]
[Date "2020.07.14"]
[Round "8"]
[White "BJthechessgod"]
[Black "onnoelgersma"]
[Result "0-1"]
[WhiteElo "2299"]
[BlackElo "2430"]
[TimeControl "180+1"]
[EndTime "11:37:34 PDT"]
[Termination "onnoelgersma won by checkmate"]

1. e4 {[%clk 0:03:00.9]} 1... c6 {[%clk 0:03:00.4]} 2. d4 {[%clk 0:03:00.7]}
2... d5 {[%clk 0:03:01.1]} 3. Nc3 {[%clk 0:03:01.6]} 3... dxe4 {[%clk
0:03:01.3]} 4. Nxe4 {[%clk 0:03:02.5]} 4... Nf6 {[%clk 0:03:02.1]} 5. Nxf6+
{[%clk 0:03:02.3]} 5... exf6 {[%clk 0:03:03]} 6. Nf3 {[%clk 0:03:02.7]} 6... Bd6
{[%clk 0:03:03.5]} 7. c3 {[%clk 0:03:03.3]} 7... O-O {[%clk 0:03:04.1]} 8. Bd3
{[%clk 0:03:02.7]} 8... Bg4 {[%clk 0:03:04.6]} 9. O-O {[%clk 0:03:02]} 9... Re8
{[%clk 0:03:04.5]} 10. h3 {[%clk 0:03:01.4]} 10... Bh5 {[%clk 0:03:03.7]} 11.
Be3 {[%clk 0:02:57.3]} 11... Nd7 {[%clk 0:03:02.8]} 12. Qc2 {[%clk 0:02:49.8]}
12... Bg6 {[%clk 0:02:58.9]} 13. Rae1 {[%clk 0:02:46.7]} 13... b5 {[%clk
0:02:49.6]} 14. Nh4 {[%clk 0:02:42.7]} 14... Nb6 {[%clk 0:02:46.3]} 15. Nf5
{[%clk 0:02:41.7]} 15... Qc7 {[%clk 0:02:38.3]} 16. Nxd6 {[%clk 0:02:39.7]}
16... Qxd6 {[%clk 0:02:37.8]} 17. b3 {[%clk 0:02:26.8]} 17... Nd5 {[%clk
0:02:25.4]} 18. Bd2 {[%clk 0:02:16.1]} 18... Rad8 {[%clk 0:02:08.4]} 19. Bxg6
{[%clk 0:02:09.8]} 19... hxg6 {[%clk 0:02:07.9]} 20. Rxe8+ {[%clk 0:01:56.1]}
20... Rxe8 {[%clk 0:02:08.8]} 21. Re1 {[%clk 0:01:56.6]} 21... Rxe1+ {[%clk
0:02:03.7]} 22. Bxe1 {[%clk 0:01:57.5]} 22... Qe6 {[%clk 0:02:04.2]} 23. Kf1
{[%clk 0:01:54.5]} 23... Nb6 {[%clk 0:01:56.6]} 24. Qe2 {[%clk 0:01:53]} 24...
Kf8 {[%clk 0:01:40.9]} 25. Qxe6 {[%clk 0:01:41.7]} 25... fxe6 {[%clk 0:01:41.8]}
26. Ke2 {[%clk 0:01:42]} 26... a5 {[%clk 0:01:38.8]} 27. Kd3 {[%clk 0:01:41.6]}
27... a4 {[%clk 0:01:39.1]} 28. Bd2 {[%clk 0:01:40.2]} 28... Ke8 {[%clk
0:01:36.6]} 29. Bf4 {[%clk 0:01:37.7]} 29... Kd7 {[%clk 0:01:36.4]} 30. h4
{[%clk 0:01:36.1]} 30... Nd5 {[%clk 0:01:35.7]} 31. Bb8 {[%clk 0:01:28.8]} 31...
axb3 {[%clk 0:01:35.8]} 32. axb3 {[%clk 0:01:28.7]} 32... Ne7 {[%clk 0:01:34.8]}
33. g4 {[%clk 0:01:23]} 33... Nd5 {[%clk 0:01:27.3]} 34. c4 {[%clk 0:01:16]}
34... Nb4+ {[%clk 0:01:04.3]} 35. Kc3 {[%clk 0:01:14]} 35... Na2+ {[%clk
0:00:57.2]} 36. Kb2 {[%clk 0:01:13.5]} 36... Nb4 {[%clk 0:00:57]} 37. Kc3 {[%clk
0:01:11.5]} 37... Na6 {[%clk 0:00:57.2]} 38. Bf4 {[%clk 0:01:10.6]} 38... bxc4
{[%clk 0:00:46.1]} 39. bxc4 {[%clk 0:01:08]} 39... c5 {[%clk 0:00:46.5]} 40. d5
{[%clk 0:00:59.9]} 40... e5 {[%clk 0:00:44.9]} 41. Be3 {[%clk 0:00:55.2]} 41...
Kd6 {[%clk 0:00:34.8]} 42. Kb3 {[%clk 0:00:54.7]} 42... Nb4 {[%clk 0:00:33.4]}
43. Ka4 {[%clk 0:00:49.6]} 43... Nc2 {[%clk 0:00:32.6]} 44. Bc1 {[%clk
0:00:38.9]} 44... Nd4 {[%clk 0:00:24.1]} 45. Ba3 {[%clk 0:00:34.7]} 45... f5
{[%clk 0:00:20.3]} 46. gxf5 {[%clk 0:00:23.5]} 46... gxf5 {[%clk 0:00:21.2]} 47.
Ka5 {[%clk 0:00:20.6]} 47... Nc2 {[%clk 0:00:20.7]} 48. Bc1 {[%clk 0:00:18.9]}
48... g6 {[%clk 0:00:18.2]} 49. Kb6 {[%clk 0:00:18.4]} 49... f4 {[%clk
0:00:16.7]} 50. Bd2 {[%clk 0:00:12.1]} 50... Nd4 {[%clk 0:00:11.8]} 51. Bc1
{[%clk 0:00:09.8]} 51... Nc2 {[%clk 0:00:11.5]} 52. Ka5 {[%clk 0:00:09.1]} 52...
Nb4 {[%clk 0:00:09.2]} 53. Kb5 {[%clk 0:00:08.4]} 53... Nd3 {[%clk 0:00:09.5]}
54. Bd2 {[%clk 0:00:08.5]} 54... Nxf2 {[%clk 0:00:08.3]} 55. Ba5 {[%clk
0:00:08.6]} 55... Nd3 {[%clk 0:00:08]} 56. Bb6 {[%clk 0:00:07.9]} 56... f3
{[%clk 0:00:08.1]} 57. Ba7 {[%clk 0:00:06.2]} 57... f2 {[%clk 0:00:08.2]} 58.
Bb8+ {[%clk 0:00:07.1]} 58... Kd7 {[%clk 0:00:08.3]} 59. Bxe5 {[%clk 0:00:03.8]}
59... Nxe5 {[%clk 0:00:06.8]} 60. Kxc5 {[%clk 0:00:04.7]} 60... f1=Q {[%clk
0:00:06.8]} 61. Kd4 {[%clk 0:00:05.6]} 61... Nf3+ {[%clk 0:00:06.5]} 62. Kc5
{[%clk 0:00:05.8]} 62... Qf2+ {[%clk 0:00:06.5]} 63. Kb5 {[%clk 0:00:06]} 63...
Kd6 {[%clk 0:00:06.9]} 64. c5+ {[%clk 0:00:06.9]} 64... Qxc5+ {[%clk 0:00:07.2]}
65. Ka4 {[%clk 0:00:06.8]} 65... Qb6 {[%clk 0:00:07.2]} 66. Ka3 {[%clk
0:00:06.5]} 66... Nd4 {[%clk 0:00:07.3]} 67. Ka2 {[%clk 0:00:07.4]} 67... Qb3+
{[%clk 0:00:07.6]} 68. Ka1 {[%clk 0:00:08.3]} 68... Nc2# {[%clk 0:00:08.3]} 0-1